[Event "French Top 16-A 2024"]
[Site "Chartres"]
[Date "2024.06.02"]
[Round "4.12"]
[White "De Balmann, Marc"]
[Black "Van Foreest, Jorden"]
[Result "0-1"]
[ECO "D02"]
[WhiteElo "2151"]
[BlackElo "2665"]
[Annotator "TA"]
[PlyCount "140"]
[EventDate "2024.06.01"]
[EventType "team-tourn"]
[EventCountry "FRA"]
[SourceTitle "playchess.com"]
[Source "ChessBase"]
[SourceQuality "1"]
[TimeControl "40/5400+30:1800+30"]

{[%evp 45,140,-8,0,-9,-16,-16,-11,-37,-35,-37,-43,-36,-49,-52,-41,-43,-27,-28,-39,-51,-31,-27,-31,-21,-23,-21,-22,-22,-17,-76,-9,-73,0,-9,-8,-39,-39,-39,-68,-69,-39,-40,-47,-54,0,0,0,0,0,0,0,0,0,0,0,0,0,0,0,0,0,0,0,0,0,0,0,0,0,0,0,0,0,0,0,0,0,0,0,-57,0,0,0,-29989,-29990,-29992,-29993,-29993,-29994,-29994,-29990,-29990,-29991,-29991,-29992,-29992,-29993]} 1. Nf3 {[%emt 0:00:03]} d5 {[%emt 0:00:11]} 2. g3 {[%emt 0:00:06]} Nd7 {[%emt 0:00:19]} 3. d4 {[%emt 0:00:32]} Nb6 {[%emt 0:00:33]} 4. Bg2 {[%emt 0:00:44]} Bf5 {[%emt 0:00:50]} 5. O-O {[%emt 0:02:51]} Nf6 {[%emt 0:01:04]} 6. b3 {[%emt 0:03:55]} h5 {[%emt 0:00:22]} 7. Nbd2 {[%emt 0:03:09]} e6 {[%emt 0:00:28]} 8. Re1 {[%emt 0:09:37]} c6 {[%emt 0:04:20]} 9. Bb2 {[%emt 0:07:18]} Be7 {[%emt 0:00:41]} 10. c4 {[%emt 0:05:56]} Ne4 {[%emt 0:07:44]} 11. Nxe4 {[%emt 0:04:26]} Bxe4 {[%emt 0:00:06]} 12. Nd2 {[%emt 0:02:08]} Bxg2 {[%emt 0:00:05]} 13. Kxg2 {[%emt 0:00:03]} dxc4 {[%emt 0:00:03]} 14. Nxc4 {[%emt 0:02:41]} Bb4 {[%emt 0:00:04]} 15. Nxb6 {[%emt 0:06:05]} axb6 {[%emt 0:00:07]} 16. Rf1 {[%emt 0:00:18]} Qd5+ {[%emt 0:05:55]} 17. f3 {[%emt 0:01:57]} h4 {[%emt 0:00:20]} 18. e4 {[%emt 0:08:14]} Qh5 {[%emt 0:01:19]} 19. g4 {[%emt 0:00:51]} h3+ {[%emt 0:00:12]} 20. Kh1 {[%emt 0:00:50]} Qg6 {[%emt 0:00:08]} 21. Qe2 {[%emt 0:01:55]} Bd6 {[%emt 0:02:37]} 22. a4 {[%emt 0:07:32]} Bf4 {[%emt 0:00:06]} 23. Bc1 {[%emt 0:01:28]} Qg5 {[%emt 0:01:31]} 24. Bxf4 {[%emt 0:04:32]} Qxf4 {[%emt 0:00:08]} 25. Rad1 {[%emt 0:00:05]} Ra5 {[%emt 0:03:14]} 26. Qd2 {[%emt 0:01:56]} Qxd2 {[%emt 0:00:42]} 27. Rxd2 {[%emt 0:00:01]} b5 {[%emt 0:00:05]} 28. axb5 {[%emt 0:02:13]} Rxb5 {[%emt 0:00:06]} 29. Rd3 {[%emt 0:00:25]} Ke7 {[%emt 0:01:07]} 30. Kg1 {[%emt 0:00:51]} Ra5 {[%emt 0:07:13]} 31. Rfd1 {[%emt 0:01:58]} Ra2 {[%emt 0:02:36]} 32. R3d2 {[%emt 0:00:23]} Rxd2 {[%emt 0:07:43]} 33. Rxd2 {[%emt 0:00:01]} Rd8 {[%emt 0:00:09]} 34. Kf2 {[%emt 0:00:50]} e5 {[%emt 0:00:04]} 35. d5 {[%emt 0:02:15]} cxd5 {[%emt 0:00:06]} 36. exd5 {[%emt 0:00:15]} Kd6 {[%emt 0:01:56]} 37. Kg3 {[%emt 0:03:39] [#]} (37. Rc2 $11) 37... Rh8 {[%emt 0:00:54]} ({Black should try} 37... Rc8 $1 $17 {White must now prevent ...Rc3.} 38. Rd3 Rc5) 38. g5 {[%emt 0:06:54]} (38. Ra2 $11 {remains equal.}) 38... b5 {[%emt 0:03:27]} (38... Rc8 $17 39. Rd3 b5) 39. b4 {[%emt 0:05:16]} Rc8 {[%emt 0:00:05]} 40. Kxh3 {[%emt 0:01:12]} Rc4 {[%emt 0:00:05]} 41. Rb2 $1 {[%emt 0:31:42]} Kxd5 {[%emt 0:30:06]} 42. Kg3 {[%emt 0:00:24]} g6 {[%emt 0:01:14]} 43. h4 {[%emt 0:00:00]} Rd4 {[%emt 0:00:00]} 44. Rb1 {[%emt 0:00:00]} Kc4 {[%emt 0:00:00]} (44... Kc6 $15) 45. Re1 $11 {[%emt 0:00:00]} Kxb4 {[%emt 0:00:00]} 46. Rxe5 {[%emt 0:00:00]} Rd7 {[%emt 0:00:00]} 47. f4 {[%emt 0:00:00]} Kc4 {[%emt 0:00:00]} 48. f5 {[%emt 0:00:00]} b4 {[%emt 0:00:00]} 49. fxg6 {[%emt 0:00:00]} fxg6 {[%emt 0:00:00]} 50. h5 {[%emt 0:00:00]} Rd3+ {[%emt 0:00:00]} 51. Kh2 {[%emt 0:00:00]} b3 {[%emt 0:00:00]} 52. hxg6 {[%emt 0:00:00]} b2 {[%emt 0:00:00]} 53. Re1 {[%emt 0:00:00]} Rd5 {[%emt 0:00:00]} 54. Rg1 {[%emt 0:00:00]} Rxg5 {[%emt 0:00:00]} 55. Rxg5 {[%emt 0:00:00]} b1=Q {[%emt 0:00:00]} (55... b1=B 56. g7 Bh7 57. g8=Q+ (57. g8=B+ Bxg8 58. Rxg8 Kd5 59. Kg3 Ke5 60. Rd8 Ke4 61. Kf2 Ke5) 57... Bxg8 58. Rxg8 Kd5 59. Rg5+ Kd4 60. Kg2) 56. g7 {[%emt 0:00:00]} Qb8+ {[%emt 0:00:00]} 57. Rg3 {[%emt 0:00:06]} (57. Kh3 $5 Qg8 $8 58. Kg2 $11) 57... Qg8 {[%emt 0:00:00]} 58. Kg2 {[%emt 0:02:55]} Kd4 {[%emt 0:00:00]} 59. Kh3 {[%emt 0:00:34]} Ke4 {[%emt 0:00:00]} 60. Kg2 {[%emt 0:00:05]} Ke5 {[%emt 0:00:00]} 61. Kh3 {[%emt 0:00:09]} Kf4 {[%emt 0:00:00]} (61... Ke6 $11) 62. Kg2 $15 {[%emt 0:02:02]} Qd5+ {[%emt 0:00:00]} (62... Kf5 $1 $15) 63. Kh2 $11 {[%emt 0:00:10]} Qh5+ {[%emt 0:00:00]} 64. Kg2 $2 {[%emt 0:00:09][%mdl 8192]} (64. Kg1 $11) 64... Qe2+ {[%emt 0:00:00]} 65. Kh3 {[%emt 0:00:08] [#]} Qe1 $1 {[%emt 0:00:00]} 66. Rg4+ {[%emt 0:02:47]} Kf3 {[%emt 0:00:00]} 67. Kh2 {[%emt 0:00:48]} Qd2+ {[%emt 0:00:00]} (67... Kxg4 68. g8=Q+ Kf5 69. Qh7+ Kf4 70. Qh6+ Ke5 71. Qh8+ Kf5 72. Qh5+ Kf6 73. Qh8+ Kf7 74. Qh7+ Kf6 75. Qh3 $11) 68. Kg1 {[%emt 0:01:26]} Qc1+ {[%emt 0:00:00]} ({Worse is} 68... Kxg4 69. g8=Q+ Qg5 70. Qxg5+ Kxg5 $11) 69. Kh2 {[%emt 0:00:11]} Qc2+ {[%emt 0:00:00]} ({And not} 69... Kxg4 70. g8=Q+ Qg5 71. Qxg5+ Kxg5 $11) 70. Kh1 {[%emt 0:00:45]} Qh7+ {[%emt 0:00:00]} ({Inferior is} 70... Kxg4 71. g8=Q+ Kf3 72. Qf8+ Kg4 73. Qg8+ Kh3 74. Qe6+ Kg3 75. Qg8+ Kf4 76. Qb8+ Kf5 77. Qg3 $11) 0-1

[Event "French Top 16-A 2024"]
[Site "Chartres"]
[Date "2024.06.02"]
[Round "4.13"]
[White "Delorme, Axel"]
[Black "Solakian-Van Eyll, Jerome"]
[Result "1/2-1/2"]
[ECO "E01"]
[WhiteElo "2489"]
[BlackElo "2247"]
[Annotator "TA"]
[PlyCount "160"]
[EventDate "2024.06.01"]
[EventType "team-tourn"]
[EventCountry "FRA"]
[SourceTitle "playchess.com"]
[Source "ChessBase"]
[SourceQuality "1"]
[TimeControl "40/5400+30:1800+30"]

{[%evp 27,160,-29,-21,-25,-22,-15,-16,-23,-16,-21,-19,-74,-74,-81,-83,-83,-83,-75,-72,-71,-71,-75,-75,-75,-75,-75,-75,-79,-80,-89,-93,-108,-104,-109,-91,-109,-108,-130,-98,-108,-108,-108,-99,-99,-101,-101,0,-102,0,-92,-91,-99,-91,-91,-84,-84,-84,-110,-84,-84,-75,-120,-114,-150,-150,-150,-150,-150,-150,-150,-150,-150,-150,-150,-150,-150,-150,-150,-150,-150,-150,-150,-150,-150,-150,-150,-150,-150,-150,-150,-150,-150,-150,-150,0,-150,-150,-150,-150,-150,-150,-150,-150,-150,-150,-150,0,-150,-150,-150,-150,-150,0,-150,-150,-150,-150,-150,-150,-150,-150,-150,-150,-150,-150,-150,-150,-150,-150,-150,-150,-150,-150,-150,-59]} 1. d4 {[%emt 0:00:14]} d5 {[%emt 0:00:37]} 2. c4 {[%emt 0:00:06]} e6 {[%emt 0:01:47]} 3. Nf3 {[%emt 0:00:07]} Nf6 {[%emt 0:00:25]} 4. g3 {[%emt 0:01:05]} Bd6 {[%emt 0:01:48]} 5. Nbd2 {[%emt 0:04:19]} O-O {[%emt 0:04:45]} 6. Bg2 {[%emt 0:00:33]} b6 {[%emt 0:02:55]} 7. O-O {[%emt 0:02:35]} Bb7 {[%emt 0:01:02]} 8. e4 {[%emt 1:25:31]} dxe4 {[%emt 0:25:05]} 9. Ng5 {[%emt 0:00:00]} Nc6 {[%emt 0:10:35]} 10. Ndxe4 {[%emt 0:00:00]} Be7 {[%emt 0:02:15]} 11. Be3 {[%emt 0:00:00]} h6 {[%emt 0:03:12]} 12. Nxf6+ {[%emt 0:00:00]} Bxf6 {[%emt 0:00:14]} 13. Nf3 {[%emt 0:00:00]} Ne7 {[%emt 0:02:28]} 14. Qe2 {[%emt 0:00:00]} Nf5 {[%emt 0:04:17]} 15. Rad1 {[%emt 0:00:00]} Qe7 {[%emt 0:02:04]} 16. Rd2 {[%emt 0:00:00]} Rad8 {[%emt 0:00:50]} 17. Rfd1 {[%emt 0:00:00]} c5 {[%emt 0:04:46]} 18. dxc5 {[%emt 0:00:00]} Nxe3 {[%emt 0:00:48]} (18... Bxf3 {simplifies} 19. Bxf3 Nxe3 20. Rxd8 Rxd8 21. Rxd8+ Qxd8 22. cxb6 Qxb6 23. Qxe3 Qxe3 24. fxe3 Bxb2 25. Bc6 Kf8) 19. fxe3 {[%emt 0:00:00]} (19. Qxe3 $11 {keeps the balance.} Bxf3 20. Rxd8 Bxd1 21. Rxd1 bxc5 22. b3) 19... Bxf3 $17 {[%emt 0:04:05]} 20. Bxf3 {[%emt 0:00:00]} Qxc5 {[%emt 0:02:55]} (20... bxc5 $2 21. b3 $17) 21. Rd7 {[%emt 0:00:00]} a5 {[%emt 0:04:00]} 22. b3 {[%emt 0:00:00]} Rxd7 {[%emt 0:01:17]} 23. Rxd7 {[%emt 0:00:00]} Rd8 {[%emt 0:00:20]} 24. Rxd8+ {[%emt 0:00:00]} Bxd8 {[%emt 0:00:03]} 25. Qd3 {[%emt 0:00:00]} Bf6 {[%emt 0:00:27]} 26. Kf2 {[%emt 0:00:00]} Qa3 {[%emt 0:06:59]} 27. Qc2 {[%emt 0:00:00]} g6 {[%emt 0:00:46]} 28. Be4 {[%emt 0:00:00]} Kg7 {[%emt 0:02:20]} 29. Qd2 {[%emt 0:00:00]} h5 {[%emt 0:00:47]} 30. h4 {[%emt 0:00:00]} Bb2 {[%emt 0:04:20]} 31. Bb1 {[%emt 0:00:00]} Be5 {[%emt 0:00:15]} 32. Be4 {[%emt 0:00:00]} Qe7 {[%emt 0:00:57]} 33. Qd1 {[%emt 0:00:00]} Qc7 {[%emt 0:01:11]} 34. Qf3 {[%emt 0:00:00]} Qd6 {[%emt 0:00:15]} 35. Kg2 {[%emt 0:00:00]} Qd2+ {[%emt 0:01:42]} 36. Qf2 {[%emt 0:00:00]} Qd6 {[%emt 0:00:58]} 37. Qf3 $1 {[%emt 0:00:00]} Qd2+ {[%emt 0:00:06]} 38. Qf2 {[%emt 0:00:00]} Qc1 {[%emt 0:00:10]} 39. Bc6 {[%emt 0:00:00]} Qd1 {[%emt 0:03:05]} 40. Be8 {[%emt 0:00:00]} Bf6 {[%emt 0:00:58]} 41. Bc6 {[%emt 0:28:54]} Qd6 {[%emt 0:32:27]} 42. Bb7 {[%emt 0:04:05]} Be5 {[%emt 0:00:00]} 43. Bf3 {[%emt 0:00:00]} Qc7 {[%emt 0:00:00]} 44. Qe1 {[%emt 0:00:00]} a4 {[%emt 0:00:00]} 45. bxa4 {[%emt 0:00:00]} Qxc4 {[%emt 0:00:00]} 46. Qd2 {[%emt 0:00:00]} Qxa4 {[%emt 0:00:00]} 47. Bd1 {[%emt 0:00:00]} Qa8+ {[%emt 0:00:00]} 48. Bf3 {[%emt 0:00:00]} Qb8 {[%emt 0:00:00]} 49. Qf2 {[%emt 0:00:00]} Qd6 {[%emt 0:00:00]} 50. Be4 {[%emt 0:00:00]} Qc5 {[%emt 0:00:00]} 51. Qe2 {[%emt 0:00:00]} Qc3 {[%emt 0:00:00]} 52. Bd3 {[%emt 0:00:00]} Bd6 {[%emt 0:00:00]} 53. Ba6 {[%emt 0:00:00]} Bc5 {[%emt 0:00:00]} 54. Bd3 {[%emt 0:00:00]} Qe5 {[%emt 0:00:00]} 55. e4 {[%emt 0:00:00]} Qd4 {[%emt 0:00:00]} 56. Kh3 {[%emt 0:00:00]} Qg1 {[%emt 0:00:00]} 57. Qf1 {[%emt 0:00:00]} Qe3 {[%emt 0:00:00]} 58. Qe2 {[%emt 0:00:00]} Qc1 {[%emt 0:00:00]} 59. Qf1 {[%emt 0:00:00]} Qb2 {[%emt 0:00:00]} 60. Qe2 {[%emt 0:00:19]} Qe5 {[%emt 0:00:00]} ({Black should play} 60... Qa1 $17 61. Qg2 Bd6) 61. Qf3 {[%emt 0:00:34]} ({White has to play} 61. Kg2 $1 $11) 61... Bd6 $17 {[%emt 0:00:00]} 62. Qg2 {[%emt 0:00:35]} Qa1 {[%emt 0:00:00]} 63. Bf1 {[%emt 0:00:43]} Qe1 {[%emt 0:00:00]} 64. Bd3 {[%emt 0:03:05]} Be5 {[%emt 0:00:00]} 65. Bc4 {[%emt 0:02:39]} Qd1 {[%emt 0:00:58]} 66. Be2 {[%emt 0:00:50]} Qe1 {[%emt 0:00:08]} 67. Bc4 $1 {[%emt 0:01:18]} Qe3 {[%emt 0:00:08]} 68. Bb3 {[%emt 0:02:48]} Kh6 {[%emt 0:04:05]} 69. Bd1 {[%emt 0:00:53]} Kg7 {[%emt 0:04:34]} 70. Bb3 $1 {[%emt 0:00:11]} Kg8 {[%emt 0:00:18]} 71. Bd1 {[%emt 0:00:34]} Kf8 {[%emt 0:00:26]} 72. Qf3 {[%emt 0:02:38]} Qg1 {[%emt 0:01:24]} 73. Bb3 {[%emt 0:00:23]} Kg7 {[%emt 0:00:09]} 74. Qg2 {[%emt 0:01:05]} Qe3 {[%emt 0:00:08]} 75. Bd1 {[%emt 0:00:56]} b5 {[%emt 0:00:35]} 76. Qf3 {[%emt 0:00:34]} Qg1 {[%emt 0:00:25]} 77. Bb3 {[%emt 0:00:10]} Qe1 {[%emt 0:00:11]} 78. Qg2 {[%emt 0:01:11]} Qe3 {[%emt 0:01:51]} 79. Bd1 {[%emt 0:00:18]} Kg8 {[%emt 0:01:26]} 80. Qf3 {[%emt 0:00:14]} Qxf3 {[%emt 0:01:22]} (80... Qg1 $17 81. Bb3 b4) 1/2-1/2

[Event "French Top 16-A 2024"]
[Site "Chartres"]
[Date "2024.06.02"]
[Round "4.13"]
[White "Tahay, Alexis"]
[Black "Flom, Gabriel"]
[Result "0-1"]
[ECO "C41"]
[WhiteElo "2376"]
[BlackElo "2431"]
[Annotator "RC"]
[PlyCount "82"]
[EventDate "2024.06.01"]
[EventType "team-tourn"]
[EventCountry "FRA"]
[SourceTitle "playchess.com"]
[Source "ChessBase"]
[SourceQuality "1"]
[TimeControl "40/5400+30:1800+30"]

1. e4 {[%emt 0:07:17]} d6 {[%emt 0:00:08]} 2. d4 {[%emt 0:00:04]} Nf6 {[%emt 0:00:03]} 3. Nc3 {[%emt 0:00:09]} e5 {[%emt 0:00:03]} 4. Nf3 {[%emt 0:00:06]} Nbd7 {[%emt 0:00:09]} 5. Bc4 {[%emt 0:00:17]} Be7 {[%emt 0:00:13]} 6. O-O {[%emt 0:00:12]} O-O {[%emt 0:00:25]} 7. a4 {[%emt 0:00:22]} c6 {[%emt 0:00:36]} 8. a5 {[%emt 0:00:38]} h6 {[%emt 0:02:21]} 9. Qe2 {[%emt 0:04:05]} exd4 {[%emt 0:03:48]} 10. Nxd4 {[%emt 0:00:03]} Re8 {[%emt 0:00:24]} 11. f3 {[%emt 0:07:44]} d5 {[%emt 0:08:12]} 12. exd5 {[%emt 0:00:28]} Bc5 {[%emt 0:04:15]} 13. Qd1 {[%emt 0:07:21]} Ne5 {[%emt 0:08:52]} 14. Be2 {[%emt 0:07:04]} cxd5 {[%emt 0:00:19]} 15. Kh1 {[%emt 0:04:35]} a6 {[%emt 0:12:02]} 16. Nb3 {[%emt 0:05:37]} Ba7 {[%emt 0:02:02]} 17. Ra4 {[%emt 0:13:12]} Bd7 {[%emt 0:09:02]} 18. Rb4 {[%emt 0:04:36]} Nc6 {[%emt 0:04:28]} 19. Rxb7 {[%emt 0:00:24]} Bc8 {[%emt 0:00:02]} 20. Rxa7 {[%emt 0:07:19]} Rxa7 {[%emt 0:00:35]} 21. Bd2 {[%emt 0:01:24]} Bf5 {[%emt 0:10:31]} 22. Na4 {[%emt 0:03:15]} d4 {[%emt 0:01:21]} 23. Re1 {[%emt 0:05:35]} Rae7 {[%emt 0:03:05]} 24. Nac5 {[%emt 0:06:00]} Bxc2 {[%emt 0:01:48]} 25. Qxc2 {[%emt 0:00:02]} Rxe2 {[%emt 0:00:05]} 26. Rxe2 {[%emt 0:00:12]} Rxe2 {[%emt 0:00:04]} 27. Qd3 {[%emt 0:00:38]} Qe7 {[%emt 0:07:23]} 28. Kg1 {[%emt 0:00:42]} Re5 {[%emt 0:01:34]} 29. Qc4 {[%emt 0:00:47]} Rd5 {[%emt 0:06:37]} 30. Ne4 {[%emt 0:02:48]} Rb5 {[%emt 0:04:54]} 31. Nec5 {[%emt 0:06:02]} Qa7 {[%emt 0:00:12]} 32. Nd3 {[%emt 0:00:54]} Ne5 {[%emt 0:01:13]} 33. Qc8+ {[%emt 0:01:23]} Kh7 {[%emt 0:00:04]} 34. Ndc5 {[%emt 0:00:41]} Ned7 {[%emt 0:01:25]} 35. Nxd7 {[%emt 0:03:49]} Qxd7 {[%emt 0:00:03]} 36. Qc4 {[%emt 0:00:21]} Qd5 {[%emt 0:00:49]} 37. Qd3+ {[%emt 0:00:14]} Kg8 {[%emt 0:00:05]} 38. Nxd4 {[%emt 0:00:34]} Rxb2 {[%emt 0:00:12]} 39. Bc3 {[%emt 0:00:01]} Rb3 {[%emt 0:03:16]} 40. Qc2 {[%emt 0:01:51]} Rb8 {[%emt 0:00:30]} 41. Qe2 {[%emt 0:30:41]} Qc5 {[%emt 0:35:54]} 0-1

[Event "French Top 16-A 2024"]
[Site "Chartres"]
[Date "2024.06.02"]
[Round "4.14"]
[White "Belkaid, Sohan"]
[Black "Lemonnier, Remi"]
[Result "1-0"]
[ECO "B33"]
[WhiteElo "2412"]
[BlackElo "2022"]
[Annotator "RC"]
[PlyCount "61"]
[EventDate "2024.06.01"]
[EventType "team-tourn"]
[EventCountry "FRA"]
[SourceTitle "playchess.com"]
[Source "ChessBase"]
[SourceQuality "1"]
[TimeControl "40/5400+30:1800+30"]

1. e4 {[%emt 0:00:07]} c5 {[%emt 0:00:14]} 2. Nf3 {[%emt 0:00:13]} Nc6 {[%emt 0:00:36]} 3. d4 {[%emt 0:01:11]} cxd4 {[%emt 0:00:10]} 4. Nxd4 {[%emt 0:00:09]} Nf6 {[%emt 0:00:06]} 5. Nc3 {[%emt 0:00:26]} e5 {[%emt 0:00:08]} 6. Ndb5 {[%emt 0:00:25]} d6 {[%emt 0:00:17]} 7. Bg5 {[%emt 0:00:55]} a6 {[%emt 0:00:14]} 8. Na3 {[%emt 0:00:07]} b5 {[%emt 0:00:05]} 9. Nab1 {[%emt 0:00:57]} Ne7 {[%emt 0:04:21]} 10. a3 {[%emt 0:13:42]} h6 {[%emt 0:00:43]} 11. Bxf6 {[%emt 0:11:17]} gxf6 {[%emt 0:00:59]} 12. Be2 {[%emt 0:00:53]} Be6 {[%emt 0:09:42]} 13. Bg4 {[%emt 0:08:25]} Rg8 {[%emt 0:22:04]} 14. Bxe6 {[%emt 0:22:06]} fxe6 {[%emt 0:00:06]} 15. Qh5+ {[%emt 0:00:17]} Ng6 {[%emt 0:07:35]} 16. Nd2 {[%emt 0:01:16]} Kf7 {[%emt 0:04:37]} 17. g3 {[%emt 0:04:28]} d5 {[%emt 0:07:30]} 18. exd5 {[%emt 0:08:40]} exd5 {[%emt 0:00:36]} 19. Qf3 {[%emt 0:01:03]} e4 {[%emt 0:07:40]} 20. Qh5 {[%emt 0:01:17]} Rc8 {[%emt 0:06:52]} 21. Rd1 {[%emt 0:01:37]} e3 {[%emt 0:14:31]} 22. fxe3 {[%emt 0:02:37]} Kg7 {[%emt 0:01:40]} 23. Nde4 {[%emt 0:05:16]} Ne5 {[%emt 0:05:31]} 24. O-O {[%emt 0:01:37]} Bc5 {[%emt 0:03:40]} 25. Rxd5 {[%emt 0:05:49]} Bxe3+ {[%emt 0:00:12]} 26. Kg2 {[%emt 0:00:27]} Qe7 {[%emt 0:01:59]} 27. Nxf6 {[%emt 0:01:12]} Rxc3 {[%emt 0:00:18]} 28. bxc3 {[%emt 0:00:41]} Bg5 {[%emt 0:00:06]} 29. Nxg8 {[%emt 0:00:42]} Qb7 {[%emt 0:00:50]} 30. Rfd1 {[%emt 0:00:21]} Nc4 {[%emt 0:00:33]} 31. Kh3 {[%emt 0:00:14]} 1-0

[Event "French Top 16-A 2024"]
[Site "Chartres"]
[Date "2024.06.02"]
[Round "4.14"]
[White "Rottenwohrer Suarez, Juan"]
[Black "Benitah, Yohan"]
[Result "1-0"]
[ECO "D16"]
[WhiteElo "2322"]
[BlackElo "2342"]
[Annotator "RC"]
[PlyCount "71"]
[EventDate "2024.06.01"]
[EventType "team-tourn"]
[EventCountry "FRA"]
[SourceTitle "playchess.com"]
[Source "ChessBase"]
[SourceQuality "1"]
[TimeControl "40/5400+30:1800+30"]

1. d4 {[%emt 0:00:51]} d5 {[%emt 0:00:35]} 2. c4 {[%emt 0:00:05]} c6 {[%emt 0:00:05]} 3. Nf3 {[%emt 0:00:04]} Nf6 {[%emt 0:00:10]} 4. Nc3 {[%emt 0:00:23]} dxc4 {[%emt 0:00:37]} 5. a4 {[%emt 0:00:07]} e6 {[%emt 0:00:51]} 6. e3 {[%emt 0:03:06]} c5 {[%emt 0:01:10]} 7. Bxc4 {[%emt 0:03:01]} cxd4 {[%emt 0:00:26]} 8. exd4 {[%emt 0:00:21]} Be7 {[%emt 0:00:06]} 9. O-O {[%emt 0:00:47]} O-O {[%emt 0:00:06]} 10. Qe2 {[%emt 0:04:16]} Nc6 {[%emt 0:05:27]} 11. Rd1 {[%emt 0:00:48]} Nb4 {[%emt 0:00:11]} 12. Bg5 {[%emt 0:02:50]} Re8 {[%emt 0:21:09]} 13. Ne5 {[%emt 0:02:41]} Nfd5 {[%emt 0:05:42]} 14. Bd2 {[%emt 0:07:02]} Rf8 {[%emt 0:07:13]} 15. Rac1 {[%emt 0:05:00]} Nf6 {[%emt 0:17:35]} 16. Bf4 {[%emt 0:02:00]} a6 {[%emt 0:02:37]} 17. Bb3 {[%emt 0:08:25]} Nfd5 {[%emt 0:05:53]} 18. Bg3 {[%emt 0:01:56]} Bg5 {[%emt 0:02:03]} 19. Ra1 {[%emt 0:03:22]} Be7 {[%emt 0:00:20]} 20. h3 {[%emt 0:06:26]} b6 {[%emt 0:02:16]} 21. Nxd5 {[%emt 0:04:03]} exd5 {[%emt 0:00:26]} 22. Rac1 {[%emt 0:07:41]} Bb7 {[%emt 0:07:08]} 23. Ng4 {[%emt 0:02:58]} Bd6 {[%emt 0:04:20]} 24. Be5 {[%emt 0:02:20]} f6 {[%emt 0:01:03]} 25. Bxd6 {[%emt 0:01:22]} Qxd6 {[%emt 0:00:01]} 26. Ne3 {[%emt 0:00:01]} g6 {[%emt 0:01:47]} 27. Qg4 {[%emt 0:01:12]} Kh8 {[%emt 0:01:19]} 28. h4 {[%emt 0:02:24]} Rae8 {[%emt 0:02:54]} 29. h5 {[%emt 0:03:05]} Re4 {[%emt 0:00:14]} 30. Qh3 {[%emt 0:00:57]} Kg7 {[%emt 0:02:39]} 31. Rc3 {[%emt 0:02:21]} Re7 {[%emt 0:02:58]} 32. Re1 {[%emt 0:06:14]} Bc6 {[%emt 0:04:42]} 33. hxg6 {[%emt 0:01:00]} Kh8 {[%emt 0:01:38]} 34. g7+ {[%emt 0:02:31]} Rxg7 {[%emt 0:00:24]} 35. Nf5 {[%emt 0:00:15]} Bd7 {[%emt 0:00:04]} 36. Nxd6 {[%emt 0:00:36]} 1-0

[Event "French Top 16-A 2024"]
[Site "Chartres"]
[Date "2024.06.02"]
[Round "4.15"]
[White "Mathieu, Phileas"]
[Black "Delorme, Laurie"]
[Result "1-0"]
[ECO "C70"]
[WhiteElo "2302"]
[BlackElo "2075"]
[Annotator "RC"]
[PlyCount "103"]
[EventDate "2024.06.01"]
[EventType "team-tourn"]
[EventCountry "FRA"]
[SourceTitle "playchess.com"]
[Source "ChessBase"]
[SourceQuality "1"]
[TimeControl "40/5400+30:1800+30"]

1. e4 {[%emt 0:00:06]} e5 {[%emt 0:00:07]} 2. Nf3 {[%emt 0:00:05]} Nc6 {[%emt 0:00:06]} 3. Bb5 {[%emt 0:00:18]} a6 {[%emt 0:00:11]} 4. Ba4 {[%emt 0:00:02]} Bc5 {[%emt 0:00:34]} 5. Nc3 {[%emt 0:02:11]} b5 {[%emt 0:02:58]} 6. Bb3 {[%emt 0:00:04]} d6 {[%emt 0:01:36]} 7. d3 {[%emt 0:05:08]} h6 {[%emt 0:03:07]} 8. Nd5 {[%emt 0:00:56]} Na5 {[%emt 0:05:42]} 9. Be3 {[%emt 0:08:58]} Nxb3 {[%emt 0:11:31]} 10. axb3 {[%emt 0:00:05]} Bxe3 {[%emt 0:00:27]} 11. Nxe3 {[%emt 0:02:23]} c5 {[%emt 0:05:07]} 12. O-O {[%emt 0:02:58]} Ne7 {[%emt 0:03:20]} 13. Qe1 {[%emt 0:07:20]} O-O {[%emt 0:08:36]} 14. b4 {[%emt 0:00:06]} f5 {[%emt 0:01:29]} 15. exf5 {[%emt 0:07:17]} Nxf5 {[%emt 0:06:07]} 16. bxc5 {[%emt 0:05:34]} Nd4 {[%emt 0:00:38]} 17. Nd2 {[%emt 0:14:05]} d5 {[%emt 0:06:59]} 18. f3 {[%emt 0:06:21]} Qc7 {[%emt 0:18:24]} 19. b4 {[%emt 0:01:28]} Be6 {[%emt 0:00:46]} 20. Rb1 {[%emt 0:10:46]} Rae8 {[%emt 0:02:56]} 21. c4 {[%emt 0:02:12]} dxc4 {[%emt 0:04:37]} 22. dxc4 {[%emt 0:00:01]} bxc4 {[%emt 0:02:31]} 23. Nexc4 {[%emt 0:00:41]} Nc2 {[%emt 0:02:03]} 24. Qxe5 {[%emt 0:04:59]} Qxe5 {[%emt 0:00:59]} 25. Nxe5 {[%emt 0:00:01]} Bf5 {[%emt 0:00:05]} 26. Ndc4 {[%emt 0:11:06]} Ne3 {[%emt 0:00:30]} 27. Ra1 {[%emt 0:00:05]} Nxf1 {[%emt 0:00:33]} 28. Kxf1 {[%emt 0:00:06]} Rf6 {[%emt 0:02:07]} 29. Kf2 {[%emt 0:01:16]} Rb8 {[%emt 0:02:41]} 30. Nb6 {[%emt 0:01:09]} Rfxb6 {[%emt 0:02:39]} 31. cxb6 {[%emt 0:00:18]} Rxb6 {[%emt 0:00:04]} 32. g4 {[%emt 0:01:06]} Be6 {[%emt 0:02:55]} 33. h4 {[%emt 0:00:50]} Kf8 {[%emt 0:00:48]} 34. h5 {[%emt 0:01:34]} Ke7 {[%emt 0:00:38]} 35. Kg3 {[%emt 0:01:21]} Kd6 {[%emt 0:00:43]} 36. f4 {[%emt 0:00:19]} Kd5 {[%emt 0:00:31]} 37. Rd1+ {[%emt 0:03:01]} Ke4 {[%emt 0:00:21]} 38. Nd3 {[%emt 0:01:04]} Kd4 {[%emt 0:01:52]} 39. Nc5+ {[%emt 0:00:45]} Kc4 {[%emt 0:00:29]} 40. Nxe6 {[%emt 0:00:42]} Rxe6 {[%emt 0:00:03]} 41. Rd7 {[%emt 0:30:05]} Kxb4 {[%emt 0:32:15]} 42. Rxg7 {[%emt 0:00:10]} a5 {[%emt 0:00:00]} 43. g5 {[%emt 0:00:00]} a4 {[%emt 0:00:00]} 44. Rb7+ {[%emt 0:00:00]} Kc4 {[%emt 0:00:00]} 45. Ra7 {[%emt 0:00:00]} hxg5 {[%emt 0:00:00]} 46. fxg5 {[%emt 0:00:00]} Re3+ {[%emt 0:00:00]} 47. Kf4 {[%emt 0:00:00]} Ra3 {[%emt 0:00:00]} 48. h6 {[%emt 0:00:00]} Kd5 {[%emt 0:00:00]} 49. Kf5 {[%emt 0:00:00]} Ra1 {[%emt 0:00:00]} 50. h7 {[%emt 0:00:00]} Rh1 {[%emt 0:00:00]} 51. Kg6 {[%emt 0:00:00]} a3 {[%emt 0:00:00]} 52. Rxa3 {[%emt 0:00:00]} 1-0